Cogmind - Beta 14 @@@ ROGUE MODE // 2024.08.14 @ 11:41:08 Player: Bulbasornado Result: Self-destructed Performance ------------- Evolutions (2) 1000 Regions Visited (7) 1400 Robots Destroyed (127) 635 Value Destroyed (2740) 2740 Prototype IDs (26) 520 Alien Tech Used (0) 0 Bonus (232) 232 TOTAL SCORE: 6527 Bonus ------- High Alert Combat Kills 225 Follower Combat Kills 7 Cogmind --------- Core Integrity 243/550 Matter 163/300 Energy 1/100 System Corruption 0% Temperature Cool (12) Movement Flying (28) Location -8/Materials Parts ------- > --- POWER (1) -------- Backup Power I > --- PROPULSION (4) --- Flight Unit Flight Unit Improved Cesium-ion Thruster Improved Cesium-ion Thruster > --- UTILITY (4) ------ Medium Storage Unit Targeting Computer Core Analyzer Hacking Suite > --- WEAPON (2) ------- Backup Laser I Backup Laser I > --- INVENTORY (10) --- Light Ion Engine Armored Wheel Improved Cesium-ion Thruster Medium Storage Unit Improved Signal Interpreter Hacking Suite Peak State ------------ > --- POWER ------------ Improved Ion Engine > --- PROPULSION ------- Armored Wheel Armored Wheel Armored Wheel Improved Cesium-ion Thruster > --- UTILITY ---------- Medium Storage Unit Targeting Computer Core Analyzer Improved Propulsion Shielding > --- WEAPON ----------- Improved Assault Rifle Improved Assault Rifle > --- INVENTORY -------- Light Ion Engine Flight Unit Flight Unit Flight Unit Medium Storage Unit Improved Propulsion Shielding Hacking Suite Hacking Suite Datajack Heavy Hammer [Rating: 29] Favorites ----------- Power Light Ion Engine Engine Light Ion Engine Power Core Light Nuclear Core Propulsion Armored Wheel Treads Light Treads Leg Aluminum Leg Wheel Armored Wheel Hover Unit Hover Unit Flight Unit Flight Unit Utility Medium Storage Unit Device Improved Heat Sink Storage Medium Storage Unit Processor Targeting Computer Hackware Hacking Suite Protection Medium Armor Plating Weapon Improved Assault Rifle Energy Gun Medium Laser Ballistic Gun Improved Assault Rifle Ballistic Cannon Light Cannon Launcher Grenade Launcher Impact Weapon Heavy Hammer Special Melee Weapon Datajack Build | -11 -10 -10 -9 -9 -9 -8 -8 ------- Run | Yrd Mat Min Mat Min Exi Min Mat Slots Evolved 4 | . . . 2 . . . 2 Power . | . . . . . . . . Propulsion 2 | . . . 1 . . . 1 Utility 2 | . . . 1 . . . 1 Weapon . | . . . . . . . . Parts Attached 135 | 9 31 7 64 2 3 6 13 Power 18 | 1 4 2 7 . . 2 2 Engine 15 | 1 2 2 7 . . 2 1 Core 3 | . 2 . . . . . 1 Reactor . | . . . . . . . . Propulsion 48 | 2 16 2 18 1 . 3 6 Treads 13 | 2 1 . 10 . . . . Leg 2 | . 2 . . . . . . Wheel 24 | . 10 2 8 1 . 3 . Hover 3 | . 3 . . . . . . Flight 6 | . . . . . . . 6 Utility 34 | 3 3 . 22 1 1 1 3 Device 11 | 2 2 . 7 . . . . Storage 7 | 1 1 . 4 . 1 . . Processor 5 | . . . 3 . . 1 1 Hackware 1 | . . . . . . . 1 Protection 10 | . . . 8 1 . . 1 Artifact . | . . . . . . . . Weapon 35 | 3 8 3 17 . 2 . 2 Energy Gun 5 | 1 1 . 3 . . . . Energy Cannon . | . . . . . . . . Ballistic Gun 19 | 2 5 1 9 . 1 . 1 Ballistic Cannon 3 | . 1 1 1 . . . . Launcher 4 | . 1 1 2 . . . . Special Weapon . | . . . . . . . . Impact Weapon 3 | . . . 2 . . . 1 Slashing Weapon . | . . . . . . . . Piercing Weapon . | . . . . . . . . Special Melee Weapon 1 | . . . . . 1 . . Unidentified Prototypes 2 | . . . 1 . . . 1 Parts Lost 22 | . 1 . 7 1 . 1 12 Power 4 | . . . 1 . . . 3 Propulsion 7 | . 1 . 3 . . . 3 Utility 5 | . . . 1 1 . 1 2 Weapon 6 | . . . 2 . . . 4 Highest Loss Streak 10 | . 1 . 7 1 . 1 10 To Critical Strikes . | . . . . . . . . Average Slot Usage (%) 98 | . 99 100 98 100 100 97 83 Engine 10 | . 8 13 10 11 11 11 5 Core 1 | . 5 . . . . . . Treads 8 | . 7 . 16 . . . . Wheel 20 | . 14 28 15 33 33 33 22 Hover 1 | . 4 . . . . . . Device 10 | . 14 14 12 8 . . . Storage 11 | . 14 14 11 11 11 11 9 Processor 2 | . . . 3 . . 8 18 Protection 5 | . . . 4 13 22 11 4 Energy Gun 2 | . 5 . 2 . . . . Ballistic Gun 16 | . 19 13 14 22 13 22 11 Ballistic Cannon 3 | . 1 13 3 . . . . Peak Build Rating 29 | 7 12 12 24 23 23 23 29 Average Rating 15 | 5 9 10 16 22 21 20 21 On Entrance 14 | . 7 12 10 23 22 23 20 Naked Turns . | . . . . . . . . Heaviest Build 37 | 13 19 20 37 36 33 26 25 Greatest Support 66 | 40 40 20 66 36 36 36 36 Greatest Overweight (x) 4 | . 1 . 4 . . . 1 Average Overweight (x) . | . . . . . . . . Largest Inventory Capacity 10 | 8 10 10 10 10 10 10 10 Average Capacity 9 | 7 8 10 10 10 10 10 10 Most Carried 10 | 2 10 10 10 10 10 10 10 Average Carried 9 | 1 7 10 9 9 9 9 9 Final Capacity 10 | 8 10 10 10 10 10 10 10 Final Carried 10 | 2 10 10 10 9 10 10 6 Class Distribution -------------------- 55% | Mutant 44% | Scavenger-Mutant Dominant Class ---------------- Mutant | -10/Materials Scavenger-Mutant | -10/Mines Scavenger-Mutant | -9/Materials Mutant | -9/Mines Mutant | -9/Exiles Mutant | -8/Mines Mutant | -8/Materials Resources | -11 -10 -10 -9 -9 -9 -8 -8 ----------- Run | Yrd Mat Min Mat Min Exi Min Mat Matter Collected 2779 | 308 633 272 1200 126 57 140 43 Remotely 10 | 10 . . . . . . . Salvage Created 3742 | 147 872 214 2004 292 . 101 112 Parts 255 | 11 57 14 134 13 . 15 11 Haulers Intercepted 6 | . 1 . 5 . . . . Recyclers Shooed 4 | 1 1 . 1 . . . 1 Parts Field Recycled . | . . . . . . . . Retrieved Matter . | . . . . . . . . Parts Self-Destructed . | . . . . . . . . Prevented . | . . . . . . . . Kills | -11 -10 -10 -9 -9 -9 -8 -8 ------- Run | Yrd Mat Min Mat Min Exi Min Mat Combat Hostiles Destroyed 90 | . 16 10 41 10 . 7 6 Guns 61 | . 10 1 31 10 . 7 2 Cannons 10 | . 1 6 3 . . . . AOE 19 | . 5 3 7 . . . 4 Classes Destroyed 12 | 2 7 1 2 . . . . Worker 10 | . 5 . 4 1 . . . Builder 2 | . 1 . 1 . . . . Tunneler 7 | 2 3 1 . . . 1 . Hauler 6 | . 1 . 5 . . . . Recycler 5 | 1 1 . 3 . . . . Operator 6 | . 3 . 3 . . . . Watcher 7 | . 2 . 5 . . . . Swarmer 30 | . 3 3 10 3 . 7 4 Grunt 44 | . 13 4 21 4 . . 2 Brawler 1 | . . . 1 . . . . Sentry 9 | . . . 9 . . . . Assembled 6 | . . 3 . 3 . . . Best Kill Streak 11 | 3 7 5 11 3 . 4 4 Combat Bots Only 6 | . 5 4 6 3 . 4 4 Max Kills in Single Turn 5 | 1 2 3 5 1 . 2 4 Gunslinging . | . . . . . . . . Exploded 4 | . 2 3 3 . . . 4 Melee . | . . . . . . . . Uniques/NPCs Destroyed . | . . . . . . . . Combat | -11 -10 -10 -9 -9 -9 -8 -8 -------- Run | Yrd Mat Min Mat Min Exi Min Mat Hostile Shots Fired 428 | . 49 29 163 27 . 43 117 Missed 114 | . 9 14 48 3 . 10 30 Damage Taken 3796 | . 428 152 1373 372 . 249 1222 Core 764 | . 95 44 237 63 . 18 307 Absorbed by Shields 184 | . . . 108 76 . . . Redirected to Shielding 205 | . . . . . . 53 152 Core Remaining (%) 54 | 100 . 44 . . . 20 . Volleys Fired 310 | 9 81 41 119 23 . 19 18 Largest 2 | 2 2 2 2 2 . 2 2 Hottest 86 | 40 70 55 86 46 . 46 46 Shots Fired 574 | 18 162 57 226 46 . 38 27 Gun 487 | 18 149 16 193 46 . 38 27 Cannon 61 | . 3 39 19 . . . . Launcher 26 | . 10 2 14 . . . . Special . | . . . . . . . . Kinetic 485 | 18 131 55 170 46 . 38 27 Thermal 63 | . 21 . 42 . . . . Explosive 26 | . 10 2 14 . . . . Electromagnetic . | . . . . . . . . Robot Hit Streak 20 | 3 14 12 20 13 . 5 15 Robot Miss Streak 5 | 3 4 2 2 3 . 5 2 Penetration Max . | . . . . . . . . Secondary Targets 8 | . . . 3 2 . 2 1 Max Gunslinging Chain 1 | . . . 1 1 . 1 1 Shots Hit Robots 383 | 10 104 22 168 33 4 22 20 Core Hits 204 | 6 55 16 94 18 . 8 7 Critical Kills . | . . . . . . . . Critical Parts Destroyed 1 | . 1 . . . . . . Critical Strikes 5 | . 1 1 3 . . . . Burn 3 | . . . 3 . . . . Destroy 1 | . 1 . . . . . . Blast 1 | . . 1 . . . . . Melee Attacks 9 | . . . 4 . 4 . 1 Impact 5 | . . . 4 . . . 1 Slashing . | . . . . . . . . Piercing . | . . . . . . . . Sneak Attacks 4 | . . . . . 4 . . Combat Hostiles . | . . . . . . . . Follow-up Attacks . | . . . . . . . . Damage Inflicted 6963 | 72 1489 463 3247 497 . 339 856 Guns 4361 | 72 988 100 2067 497 . 339 298 Cannons 511 | . 20 258 233 . . . . Explosions 2072 | . 481 105 928 . . . 558 Melee . | . . . . . . . . Ramming 19 | . . . 19 . . . . Kinetic 4234 | 72 830 358 1840 497 . 339 298 Thermal 1196 | . 178 . 460 . . . 558 Explosive 1514 | . 481 105 928 . . . . Electromagnetic . | . . . . . . . . Impact . | . . . . . . . . Slashing . | . . . . . . . . Piercing . | . . . . . . . . Highest Corruption . | . . . . . . . . Average Corruption . | . . . . . . . . Corruption Purged . | . . . . . . . . Corruption Blocked . | . . . . . . . . Overload Shots . | . . . . . . . . Overflow Damage 35 | . . . . . . . 35 Projectiles . | . . . . . . . . Explosions 35 | . . . . . . . 35 Melee . | . . . . . . . . Knockbacks 3 | . . 2 1 . . . . Impact . | . . . . . . . . Kinetic 3 | . . 2 1 . . . . Secondary . | . . . . . . . . Self-Inflicted Damage 133 | . 7 5 8 . . . 113 Shots 4 | . 1 1 1 . . . 1 Rammed 3 | . . . 3 . . . . Targets Rammed 4 | . . . 4 . . . . Kicked . | . . . . . . . . Crushed 1 | . . . 1 . . . . Highest Temperature 29 | . 12 . 29 7 . . 8 Average Temperature 6 | . 5 . 7 3 . . 3 Received Heat Transfer 1306 | . 174 39 570 64 . . 459 Siege Activations . | . . . . . . . . Robots Corrupted . | . . . . . . . . Combat Hostiles . | . . . . . . . . Parts Fried . | . . . . . . . . Impact Corruptions . | . . . . . . . . Robots Melted . | . . . . . . . . Combat Hostiles . | . . . . . . . . Parts Melted 5 | . 1 . 3 . . . 1 Heat Transferred 2274 | . 518 . 1406 . . . 350 Parts Sabotaged . | . . . . . . . . Parts Stolen . | . . . . . . . . Parts Stripped . | . . . . . . . . Power Chain Reactions . | . . . . . . . . Alert | -11 -10 -10 -9 -9 -9 -8 -8 ------- Run | Yrd Mat Min Mat Min Exi Min Mat Peak Influence 855 | 15 368 315 855 541 . 155 380 Initial 333 | . 9 134 50 333 . . 60 Average 271 | 6 189 230 346 400 . 119 182 Maximum Alert Level 3 | . 1 1 3 2 . . 1 Low Security (%) 44 | 100 55 39 35 . . 100 62 Level 1 31 | . 44 60 14 71 . . 37 Level 2 21 | . . . 43 28 . . . Level 3 2 | . . . 6 . . . . Level 4 . | . . . . . . . . Level 5 . | . . . . . . . . High Security . | . . . . . . . . Max Security . | . . . . . . . . Squads Dispatched 15 | . 5 . 7 . . . 3 Investigation 8 | . 2 . 4 . . . 2 Extermination . | . . . . . . . . Reinforcement 7 | . 3 . 3 . . . 1 Assault . | . . . . . . . . Garrison . | . . . . . . . . Intercept . | . . . . . . . . Searches Triggered . | . . . . . . . . Construction Impeded . | . . . . . . . . Haulers Reinforced . | . . . . . . . . Active Scanning Responses . | . . . . . . . . Cargo Convoy Interrupts . | . . . . . . . . Stealth | -11 -10 -10 -9 -9 -9 -8 -8 --------- Run | Yrd Mat Min Mat Min Exi Min Mat Distress Signals 16 | . 6 1 5 1 . . 3 Communications Jammed . | . . . . . . . . Distress Signals . | . . . . . . . . Times Spotted 148 | . 36 12 53 15 . 7 25 Peak Tracking Total 15 | . 6 4 6 5 . 4 15 Tactical Retreats 10 | . 2 1 2 1 . . 4 Traps | -11 -10 -10 -9 -9 -9 -8 -8 ------- Run | Yrd Mat Min Mat Min Exi Min Mat Traps Triggered 7 | . 3 . 3 . . . 1 Indirectly . | . . . . . . . . Trap Hack Attempts . | . . . . . . . . Triggered . | . . . . . . . . Disarmed . | . . . . . . . . Reprogrammed . | . . . . . . . . Reused . | . . . . . . . . Traps Extracted . | . . . . . . . . Installed . | . . . . . . . . Triggered . | . . . . . . . . Machines | -11 -10 -10 -9 -9 -9 -8 -8 ---------- Run | Yrd Mat Min Mat Min Exi Min Mat Machines Disabled 8 | . 1 . 3 . . . 4 Max in Single Turn 3 | . 1 . 2 . . . 3 Machines Repaired . | . . . . . . . . Machines Dismantled . | . . . . . . . . Machines Sabotaged . | . . . . . . . . Overloaded Fab Kills . | . . . . . . . . Hacking | -11 -10 -10 -9 -9 -9 -8 -8 --------- Run | Yrd Mat Min Mat Min Exi Min Mat Machines Accessed 21 | . 6 . 11 . 2 . 2 Terminals 13 | . 4 . 8 . . . 1 Fabricators . | . . . . . . . . Repair Stations 1 | . . . . . . . 1 Recycling Units 4 | . 2 . 2 . . . . Scanalyzers 1 | . . . 1 . . . . Garrison Access . | . . . . . . . . Total Hacks 78 | . 19 . 43 . 5 . 11 Successful 39 | . 8 . 21 . 5 . 5 Failed 38 | . 11 . 21 . . . 6 Catastrophic 6 | . 1 . 4 . . . 1 Database Lockouts 1 | . . . 1 . . . . Manual 37 | . 10 . 20 . . . 7 Terminals 55 | . 15 . 32 . . . 8 Fabricators . | . . . . . . . . Repair Stations 3 | . . . . . . . 3 Recycling Units 12 | . 4 . 8 . . . . Scanalyzers 3 | . . . 3 . . . . Garrison Access . | . . . . . . . . Terminal Hacks 24 | . 5 . 12 . 5 . 2 Record 5 | . . . . . 5 . . Part Schematic 1 | . . . 1 . . . . Robot Analysis 3 | . 2 . . . . . 1 Prototype ID Bank 6 | . 1 . 5 . . . . Branch Access Points 1 | . . . 1 . . . . Alert Level 2 | . . . 1 . . . 1 Unreport Threat 2 | . . . 2 . . . . Locate Traps 2 | . 1 . 1 . . . . Hauler Manifests 2 | . 1 . 1 . . . . Fabricator Hacks . | . . . . . . . . Repair Station Hacks 1 | . . . . . . . 1 Refit 1 | . . . . . . . 1 Recycling Unit Hacks 4 | . 2 . 2 . . . . Retrieve Components 4 | . 2 . 2 . . . . Scanalyzer 2 | . . . 2 . . . . Insert Component 1 | . . . 1 . . . . Analyze 1 | . . . 1 . . . . Garrison Access Hacks . | . . . . . . . . Unauthorized Hacks 8 | . 1 . 5 . . . 2 Terminals 3 | . . . 1 . . . 2 Botnet 1 | . . . . . . . 1 Operators 2 | . . . 1 . . . 1 Fabricators . | . . . . . . . . Repair Stations . | . . . . . . . . Recycling Units 5 | . 1 . 4 . . . . Recyclers 1 | . . . 1 . . . . Mask 1 | . . . 1 . . . . Tunnel 3 | . 1 . 2 . . . . Scanalyzers . | . . . . . . . . Garrison Access . | . . . . . . . . Data Cores Recovered . | . . . . . . . . Used . | . . . . . . . . Hacking Detections 16 | . 4 . 10 . . . 2 Full Trace Events 10 | . 4 . 5 . . . 1 Feedback Events . | . . . . . . . . Feedback Blocked . | . . . . . . . . Robot Schematics Acquired . | . . . . . . . . Robots Built . | . . . . . . . . Authchips . | . . . . . . . . Time . | . . . . . . . . Total Robot Build Rating . | . . . . . . . . Part Schematics Acquired 2 | . . . 2 . . . . Parts Built . | . . . . . . . . Authchips . | . . . . . . . . Time . | . . . . . . . . Total Part Build Rating . | . . . . . . . . Parts Repaired . | . . . . . . . . Time . | . . . . . . . . Parts Recycled . | . . . . . . . . Recycled Matter . | . . . . . . . . Retrieved Matter . | . . . . . . . . Retrieved Components 33 | . 13 . 20 . . . . Parts Scanalyzed 1 | . . . 1 . . . . Part Schematics Acquired 1 | . . . 1 . . . . Parts Damaged . | . . . . . . . . Bothacking | -11 -10 -10 -9 -9 -9 -8 -8 ------------ Run | Yrd Mat Min Mat Min Exi Min Mat Used RIF Installer . | . . . . . . . . Robots Hacked 4 | . . . . . 4 . . Non-combat 3 | . . . . . 3 . . Combat 1 | . . . . . 1 . . Robot Hacks Applied 4 | . . . . . 4 . . parse_system 4 | . . . . . 4 . . Relay Couplers Released . | . . . . . . . . Fabnet Peak Effective % . | . . . . . . . . Robots Rewired . | . . . . . . . . Allies Hacked . | . . . . . . . . Hacks Repelled . | . . . . . . . . Allies | -11 -10 -10 -9 -9 -9 -8 -8 -------- Run | Yrd Mat Min Mat Min Exi Min Mat Total Allies 2 | . . . . 2 . . . Largest Group 2 | . . . . 2 1 . . Highest-Rated Group 42 | . . . . 42 31 . . Highest-Rated Ally 31 | . . . . 31 31 . . Total Orders . | . . . . . . . . Ally Attacks 24 | . . . . 24 . . . Total Damage 306 | . . . . 306 . . . Kills 4 | . . . . 4 . . . Allies Corrupted . | . . . . . . . . Allies Melted . | . . . . . . . . Intel | -11 -10 -10 -9 -9 -9 -8 -8 ------- Run | Yrd Mat Min Mat Min Exi Min Mat Robot Analysis Total 3 | . 2 . . . . . 1 Derelict Logs Recovered 2 | . . . . 2 . . . Drone Launches . | . . . . . . . . Drone Recoveries . | . . . . . . . . Exploration | -11 -10 -10 -9 -9 -9 -8 -8 ------------- Run | Yrd Mat Min Mat Min Exi Min Mat Turns Passed 6433 | 161 1522 651 2656 472 424 284 263 Spaces Moved 4065 | 77 1162 260 1228 421 456 228 233 Core 4 | 1 . . 3 . . . . Treads 968 | 76 220 . 672 . . . . Legs 57 | . 57 . . . . . . Wheels 2888 | . 777 260 553 421 456 228 193 Hover 108 | . 108 . . . . . . Flight 40 | . . . . . . . 40 Fastest Speed 28 | 50 80 80 80 90 90 90 28 Average Speed 105 | 158 100 80 130 90 90 90 79 Slowest Speed 250 | 160 190 80 250 90 90 90 105 Overloaded Moves . | . . . . . . . . Propulsion Burnouts . | . . . . . . . . Robots Hopped 2 | . . . . . . . 2 Cave-ins Triggered . | . . . . . . . . Exploration Rate (%) 64 | 4 96 60 98 90 90 45 31 Regions Visited 7 Branch Regions 4 Pre-discovered Areas 4 | . 1 . 2 . 1 . . Known Exits Taken 2 | . . . 1 . . 1 . Unknown Exits Taken 5 | 1 1 1 . 1 1 . . Scrap Searched 4 | . . 1 . 2 . 1 . Spaces Dug 7 | . . . 7 . . . . Terrain Destroyed 172 | . 58 11 74 . . . 29 Melee 4 | . . . 4 . . . . Projectile 3 | . . . 3 . . . . AOE 165 | . 58 11 67 . . . 29 Terrain Rammed . | . . . . . . . . Walls Destroyed . | . . . . . . . . Machines Disabled . | . . . . . . . . Actions | -11 -10 -10 -9 -9 -9 -8 -8 --------- Run | Yrd Mat Min Mat Min Exi Min Mat Total 5662 | 98 1373 648 2059 468 468 270 278 Wait 992 | 2 47 337 567 22 . 8 9 Move 4054 | 76 1161 259 1227 420 455 227 229 Hop 2 | . . . . . . . 2 Pick Up 51 | . 22 . 21 . 1 4 3 Fast Attach 58 | 9 12 1 27 . . 2 7 Attach 12 | . 2 . 4 1 1 . 4 Detach 10 | 2 3 . 4 . 1 . . Swap 65 | . 17 6 33 1 2 4 2 Drop 92 | . 28 4 49 1 1 6 3 Fire 310 | 9 81 41 119 23 . 19 18 Melee 9 | . . . 4 . 4 . 1 Ram 3 | . . . 3 . . . . Kick . | . . . . . . . . Crush 1 | . . . 1 . . . . Escape Stasis . | . . . . . . . . Rewire 3 | . . . . . 3 . . Trap . | . . . . . . . . Miscellaneous . | . . . . . . . . Route ------- -11/Scrapyard -10/Materials (discovered 5 exits: *Mat x3 / [*Min x2]) -10/Mines (discovered 2 exits: *Mat x2) -9/Materials (discovered 5 exits: *Mat x3 / *Min x2) -9/Mines (discovered 3 exits: *Mat x2 / *Exi) -9/Exiles (discovered 2 exits: [*Min x2]) -8/Mines -8/Materials (discovered 1 exit: Fac) History --------- Turn | Location | Event 8 | -11/Scrapyard | Discovered new exit (range 15) 162 | -11/Scrapyard | Entered Materials 225 | -10/Materials | Discovered new exit (range 9) 303 | -10/Materials | Build established: Mutant 457 | -10/Materials | Discovered new exit (range 11) 880 | -10/Materials | Discovered new exit (range 12) 1026 | -10/Materials | Discovered new exit (range 9) 1275 | -10/Materials | Discovered new exit (range 6) 1469 | -10/Materials | Build established: Scavenger-Mutant 1684 | -10/Materials | Entered Mines 1703 | -10/Mines | Excavation squad dispatched 1703 | -10/Mines | A large section of the Mines collapsed 1712 | -10/Mines | Met a Derelict bent on vengeance 1742 | -10/Mines | Core integrity fell below 50% 1764 | -10/Mines | Discovered new exit (range 8) 2331 | -10/Mines | Discovered new exit (range 5) 2335 | -10/Mines | Entered Materials 2335 | -9/Materials | Evolved 2 slots: Propulsion x1, Utility x1 2965 | -9/Materials | Lost 7 parts (1p3n1u2w) 3182 | -9/Materials | Discovered new exit (range 6) 3228 | -9/Materials | Identified exit to Materials 3357 | -9/Materials | Discovered new exit (range 15) 3383 | -9/Materials | Discovered new exit (range 15) 3428 | -9/Materials | Identified exit to Mines 3690 | -9/Materials | Central database locked down 3956 | -9/Materials | Core integrity fell below 50% 4350 | -9/Materials | Discovered exit to Materials (range 16) 4384 | -9/Materials | Build established: Mutant 4495 | -9/Materials | Discovered exit to Materials (range 13) 4991 | -9/Materials | Entered Mines 5095 | -9/Mines | Discovered exit to Materials (range 5) 5158 | -9/Mines | Learned location of 1 exit from Materials 5317 | -9/Mines | Assembled infested the area 5374 | -9/Mines | Discovered exit to Materials (range 10) 5453 | -9/Mines | Deemed a non-threat by the Exiles lab entrance 5453 | -9/Mines | Discovered new exit (range 5) 5463 | -9/Mines | Entered Exiles 5463 | -9/Exiles | Accompanied by 1 ally 5477 | -9/Exiles | Discovered new exit (range 15) 5486 | -9/Exiles | Met 8R-AWN 5493 | -9/Exiles | Led the pair of lost Derelicts to a safe place 5511 | -9/Exiles | Met EX-HEX 5555 | -9/Exiles | Met EX-BIN 5647 | -9/Exiles | Met EX-DEC 5652 | -9/Exiles | Learned location of Zion (-6) 5703 | -9/Exiles | Visited The Gauntlet 5877 | -9/Exiles | Discovered new exit (range 14) 5887 | -9/Exiles | Entered Mines 6133 | -8/Mines | Discovered exit to Materials (range 14) 6171 | -8/Mines | Entered Materials 6171 | -8/Materials | Evolved 2 slots: Propulsion x1, Utility x1 6172 | -8/Materials | Identified exit to Factory 6386 | -8/Materials | Core integrity fell below 50% 6419 | -8/Materials | Lost 10 parts (3p3n1u3w) 6434 | -8/Materials | Self-destructed Last Messages --------------- 06381_ O-16 Technician: "IFF HANDSHAKE FAILED. SECURING TERMINAL." 06382_ U-05 Engineer builds a Wall. 06386_ U-05 Engineer lays Concrete. 06387_ ALERT: Hostiles spotted, dispatching reinforcements to Terminal M006. 06387_ U-05 Engineer lays Concrete. 06388_ Hvy. Hammer destroyed. 06416_ U-05 Engineer builds a Wall. 06417_ U-05 Engineer lays Concrete. 06420_ K-01 Serf cleans the Scanalyzer. 06420_ U-05 Engineer builds a Wall. 06420_ U-05 Engineer lays Concrete. 06423_ W-25 Informer sends out distress signal. 06425_ Acquired 43 matter. 06429_ Connecting with Repair Station... >>Refit Scanning configuration... Attaching: Backup Power I x1 Backup Laser I x2 Map ----- +----------------------------------------------------+ | ?????????????????????????????????????????????????? | | ?????????????????????????????????????????????????? | | ?????????????????????????????????????????????????? | | ?????????????????????????????????????????????????? | | ?????????????????????????????????????????????????? | | ?????????????????????????????????????????????????? | | ?????????????????????????????????????????????????? | | ?????????????????????????????????????????????????? | | ?????????????????????????????????????????????????? | | ?????????????????????????????????????????????????? | | ?????????????????????????????????????????????????? | | ?????????????????????? ??????????????????????????? | | ??????????????????? ?? ??????????????????????????? | | ????????????????# ?? ??????????????????????????? | | ????????????????# ##/??????????????????????????? | | ????????????????# ##????????????????????????? | | ????????????????# ????????????????????????? | | ????????????????# ????????????????????????? | | ????????????????# ????????????????????????? | | ????????????????# #????????????????????????? | | ????????????????+ #????????????????????????? | | ???????????????o# #????????????????????????? | | ????????????????# !!#????????????????????????? | | ????????????????# !]#########????????????????? | | ????????????????# # t #????????????????? | | ????????????????# #@= """ #????????????????? | | ????????????????# r/ """ #?????##########?? | | ????????????????+ # """ #?????# #?? | | ????????????????#""" a # #?????# = #?? | | ????????????????#"R #########?????# #?? | | ????????????????#""" = # #??????# #?? | | ????????????????# "" # #??????# #?? | | ????????????????# # " " #??????# #?? | | ????????????????# + "R" #??????# #?? | | ????????? # """ #??????? | #?? | | ????????? # #????????? ???? | | ?????????""" """ """ #####+#############+###### | | ??????????"" """ """ | | ???????????? """ """ | | ???????????? | | ????????????? ############ ######+###### | | ?????????????? #?????### # ## #?? | | ?????????????? #######""""#+## "" #?? | | ? ??????????? ?? # % # "" ! #?? | | ? #????????????? # """ " # """ #?? | | ? #????????????????# # """ " !# ### | | ? #????????????????# #["" " %# ! "" + | | #????????????????# + %= =" """ ### | | #????????????????# # * " S" #?? | | #????????????????# ############""" #?? | +----------------------------------------------------+ Best States ------------- Heat Dissipation 42 Energy Generation 14 Energy Capacity 280 Matter Stores 300 Matter Capacity 300 Sight Range 16 Robot Scan Range 14 Terrain Scan Density 10 Armor Coverage 225 Propulsion Shielding 66 Evasion (%) 55 Targeting Accuracy 6 Core Analysis 6 Recoil Reduction 3 Item Schematics ----------------- Med. Storage Unit | -9/Materials | Hacked Hacking Suite | -9/Materials | Scanalyzed Robot Schematics ------------------ None Fabricated ------------ Nothing Alien Tech Used ----------------- None Achievements -------------- None Challenges ------------ None Game ------ Seed RestorationPhasingBlaster Manual? 0 Play Time 01:22:39 Cumulative 141.5 hours Start 2024.08.14 @ 09:56:23 End 2024.08.14 @ 11:41:08 Sessions 1 Manual Loads 0 Difficulty Rogue Special Mode None Game No. 53 Rogue 51 Adventurer 2 Explorer 0 Win Type - Total 2 Types 2/0/0/0/0/0/0/0/0 Lore% 51 Gallery% 57 Achievement% 41 Wizard Run 0 Options --------- Layout 0 ASCII 0 Keyboard 1 Movement Vi Keybinds 0 Fullscreen 2 Font 18/Smallcaps Map View 76x50 Zoom Use 0% Tactical HUD 1 Map Filters NONE Filters NONE Steam 1 RUN: cdeee166-af15-4d77-82b9-ac47076f7cef